bitfinex-derivatives/quotes_BNBF0:USTF0_20260114
["timestamp","ask_amount","ask_price","bid_price","bid_amount"]
[1768388768145,0.78096244,933.87,932.86,0.18629351]
[1768388768346,0.78096244,933.86,932.86,0.18629351]
[1768388768541,0.78096244,933.85,932.86,0.18629351]
[1768388768841,0.78096244,933.84,932.86,0.18629351]
[1768388769042,0.78096244,933.83,932.86,0.18629351]
[1768388769243,0.78096244,933.82,932.86,0.18629351]
[1768388769443,0.78096244,933.81,932.86,0.18629351]
[1768388769647,0.78096244,933.8,932.86,0.18629351]
[1768388769846,0.78096244,933.79,932.86,0.18629351]
[1768388770146,0.78096244,933.78,932.86,0.18629351]
[1768388770348,1.539,933.98,932.86,0.18629351]
[1768388770548,0.78080299,933.97,932.86,0.18629351]
[1768388770845,0.78080299,933.96,932.86,0.18629351]
[1768388771048,0.78080299,933.95,932.86,0.18629351]
[1768388771349,0.78080299,933.94,932.86,0.18629351]
[1768388771543,0.78080299,933.93,932.86,0.18629351]
[1768388771744,0.78080299,933.92,932.86,0.18629351]
[1768388771948,0.78080299,933.91,932.86,0.18629351]
[1768388772243,0.78080299,933.9,932.86,0.18629351]
[1768388772448,0.78080299,933.89,932.86,0.18629351]
[1768388772646,1.539,933.98,932.86,0.18629351]
[1768388772647,0.78080299,933.88,932.86,0.18629351]
[1768388772845,0.78080299,933.87,932.86,0.18629351]
[1768388773049,0.78080299,933.86,932.86,0.18629351]
[1768388773250,0.78080299,933.85,932.86,0.18629351]
[1768388773447,0.78080299,933.84,932.86,0.18629351]
[1768388773646,0.78080299,933.83,932.86,0.18629351]
[1768388773847,0.78080299,933.82,932.86,0.18629351]
[1768388774047,0.78080299,933.81,932.86,0.18629351]
[1768388774255,0.78080299,933.8,932.86,0.18629351]
[1768388774453,0.78080299,933.79,932.86,0.18629351]
[1768388774654,0.78080299,933.78,932.86,0.18629351]
[1768388774950,1.539,933.98,932.86,0.18629351]
[1768388775154,0.78047563,933.97,932.86,0.18629351]
[1768388775353,0.78047563,933.96,932.86,0.18629351]
[1768388775553,0.78047563,933.95,932.86,0.18629351]
[1768388775750,0.78047563,933.94,932.86,0.18629351]
[1768388776054,0.78047563,933.93,932.86,0.18629351]
[1768388776351,0.78047563,933.92,932.86,0.18629351]
[1768388776550,1.539,933.98,932.86,0.18629351]
[1768388776551,0.78047563,933.91,932.86,0.18629351]
[1768388776755,0.78047563,933.9,932.86,0.18629351]
[1768388776951,0.78047563,933.89,932.86,0.18629351]
[1768388777154,0.78047563,933.88,932.86,0.18629351]
[1768388777356,0.78047563,933.87,932.86,0.18629351]
[1768388777551,0.78047563,933.86,932.86,0.18629351]
[1768388777855,1.539,933.98,932.86,0.18629351]
[1768388777856,0.78047563,933.85,932.86,0.18629351]
[1768388778056,0.78047563,933.84,932.86,0.18629351]
[1768388778251,0.78047563,933.83,932.86,0.18629351]
[1768388778453,0.78047563,933.82,932.86,0.18629351]
[1768388778656,0.78047563,933.81,932.86,0.18629351]
[1768388778854,0.78047563,933.8,932.86,0.18629351]
[1768388779052,0.78047563,933.79,932.86,0.18629351]
[1768388779252,1.539,933.98,932.86,0.18629351]
[1768388779456,0.78044931,933.97,932.86,0.18629351]
[1768388779652,0.78044931,933.96,932.86,0.18629351]
[1768388779858,0.78044931,933.95,932.86,0.18629351]
[1768388780054,0.78044931,933.94,932.86,0.18629351]
[1768388780357,0.78044931,933.93,932.86,0.18629351]
[1768388780555,0.78044931,933.92,932.86,0.18629351]
[1768388780752,0.78044931,933.91,932.86,0.18629351]
[1768388780954,0.78044931,933.9,932.86,0.18629351]
[1768388781157,0.78044931,933.89,932.86,0.18629351]
[1768388781456,1.539,933.98,932.86,0.18629351]
[1768388781457,0.78044931,933.88,932.86,0.18629351]
[1768388781655,0.78044931,933.87,932.86,0.18629351]
[1768388781853,1.539,933.98,932.86,0.18629351]
[1768388781854,0.78044931,933.86,932.86,0.18629351]
[1768388782058,0.78044931,933.85,932.86,0.18629351]
[1768388782358,0.78044931,933.84,932.86,0.18629351]
[1768388782555,0.78044931,933.83,932.86,0.18629351]
[1768388782857,0.78044931,933.82,932.86,0.18629351]
[1768388783058,0.78044931,933.81,932.86,0.18629351]
[1768388783355,0.78044931,933.8,932.86,0.18629351]
[1768388783554,0.78044931,933.79,932.86,0.18629351]
[1768388783859,1.539,933.98,932.86,0.18629351]
[1768388784156,0.78033317,933.97,932.86,0.18629351]
[1768388784458,0.78033317,933.96,932.86,0.18629351]
[1768388784656,0.78033317,933.95,932.86,0.18629351]
[1768388784856,0.78033317,933.94,932.86,0.18629351]
[1768388785059,0.78033317,933.93,932.86,0.18629351]
[1768388785255,0.78033317,933.92,932.86,0.18629351]
[1768388785457,0.78033317,933.91,932.86,0.18629351]
[1768388785659,0.78033317,933.9,932.86,0.18629351]
[1768388785858,0.78033317,933.89,932.86,0.18629351]
[1768388786060,0.78033317,933.88,932.86,0.18629351]
[1768388786259,0.78033317,933.87,932.86,0.18629351]
[1768388786558,0.78033317,933.86,932.86,0.18629351]
[1768388786759,0.78033317,933.85,932.86,0.18629351]
[1768388786960,0.78033317,933.84,932.86,0.18629351]
[1768388787256,1.539,933.98,932.86,0.18629351]
[1768388788261,1.539,933.98,932.58,2.6562837]
[1768388788463,0.78058713,933.97,932.58,2.6562837]
[1768388788758,0.78058713,933.96,932.96,0.18631096]
[1768388788957,0.78058713,933.95,932.96,0.18631096]
[1768388789258,0.78058713,933.94,932.96,0.18631096]
[1768388789461,0.78058713,933.93,932.96,0.18631096]
[1768388789656,0.78058713,933.92,932.96,0.18631096]
[1768388789860,0.78058713,933.91,932.96,0.18631096]
[1768388790059,0.78058713,933.9,932.96,0.18631096]
[1768388790360,0.78058713,933.89,932.96,0.18631096]
[1768388790660,0.78058713,933.88,932.96,0.18631096]
[1768388790859,0.78058713,933.87,932.96,0.18631096]
[1768388791058,0.78058713,933.86,932.96,0.18631096]
[1768388791259,0.78058713,933.85,932.96,0.18631096]
[1768388791457,1.539,933.98,932.96,0.18631096]
[1768388791656,0.78057965,933.97,932.96,0.18631096]
[1768388791861,0.78057965,933.96,932.96,0.18631096]
[1768388792063,0.78057965,933.95,932.96,0.18631096]
[1768388792259,0.78057965,933.94,932.96,0.18631096]
[1768388792562,0.78057965,933.93,932.96,0.18631096]
[1768388792762,0.78057965,933.92,932.96,0.18631096]
[1768388792963,0.78057965,933.91,932.96,0.18631096]
[1768388793162,0.78057965,933.9,932.96,0.18631096]
[1768388793363,0.78057965,933.89,932.96,0.18631096]
[1768388793558,1.539,933.98,932.96,0.18631096]
[1768388793559,0.78057965,933.88,932.96,0.18631096]
[1768388793764,0.78057965,933.87,932.96,0.18631096]
[1768388794061,0.78057965,933.86,932.96,0.18631096]
[1768388794260,0.78057965,933.85,932.96,0.18631096]
[1768388794560,0.78057965,933.84,932.96,0.18631096]
[1768388794763,1.539,933.98,932.96,0.18631096]
[1768388794965,0.78640277,933.97,932.96,0.18631096]
[1768388795164,0.78640277,933.96,932.96,0.18631096]
[1768388795464,0.78640277,933.95,932.96,0.18631096]
[1768388795664,0.78640277,933.94,932.96,0.18631096]
[1768388795865,0.78640277,933.93,932.96,0.18631096]
[1768388796066,0.78640277,933.92,932.96,0.18631096]
[1768388796263,0.78640277,933.91,932.96,0.18631096]
[1768388796465,0.78640277,933.9,932.96,0.18631096]
[1768388796662,0.78640277,933.89,932.96,0.18631096]
[1768388796866,0.78640277,933.88,932.96,0.18631096]
[1768388797065,0.78640277,933.87,932.96,0.18631096]
[1768388797263,0.78640277,933.86,932.96,0.18631096]
[1768388797468,0.78640277,933.85,932.96,0.18631096]
[1768388797768,0.78639549,933.84,932.96,0.18631096]
[1768388797968,1.539,933.98,932.96,0.18631096]
[1768388798263,0.78639549,933.97,932.96,0.18631096]
[1768388798467,0.78639549,933.96,932.96,0.18631096]
[1768388798668,0.78639549,933.95,932.96,0.18631096]
[1768388798863,0.78639549,933.94,932.96,0.18631096]
[1768388799167,0.78639549,933.93,932.96,0.18631096]
[1768388799368,0.78639549,933.92,932.96,0.18631096]
[1768388799563,0.78639549,933.91,932.96,0.18631096]
[1768388799768,0.78639549,933.9,932.96,0.18631096]
[1768388800066,0.78639549,933.89,932.96,0.18631096]
[1768388800264,0.78639549,933.88,932.96,0.18631096]
[1768388800466,0.78639549,933.87,932.96,0.18631096]
[1768388800669,0.78639549,933.86,932.96,0.18631096]
[1768388800868,0.78639549,933.85,932.96,0.18631096]
[1768388801065,0.78639549,933.84,932.96,0.18631096]
[1768388801265,1.539,933.98,932.96,0.18631096]
[1768388801565,0.7863526,933.97,932.96,0.18631096]
[1768388801766,0.7863526,933.96,932.96,0.18631096]
[1768388801968,0.7863526,933.95,932.96,0.18631096]
[1768388802168,0.7863526,933.94,932.96,0.18631096]
[1768388802463,0.7863526,933.93,932.96,0.18631096]
[1768388802667,0.7863526,933.92,932.96,0.18631096]
[1768388802964,1.539,933.98,932.96,0.18631096]
[1768388803164,0.78628152,933.97,932.96,0.18631096]
[1768388803364,0.78628152,933.96,932.96,0.18631096]
[1768388803569,0.78628152,933.95,932.96,0.18631096]
[1768388803769,0.78628152,933.94,932.96,0.18631096]
[1768388803966,0.78628152,933.93,932.96,0.18631096]
[1768388804166,1.539,933.98,932.96,0.18631096]
[1768388804371,0.78608668,933.97,932.96,0.18631096]
[1768388804569,0.78608668,933.96,932.96,0.18631096]
[1768388804765,0.78608668,933.95,932.96,0.18631096]
[1768388805071,0.78608668,933.94,932.96,0.18631096]
[1768388805272,0.78608668,933.93,932.96,0.18631096]
[1768388805576,1.539,933.98,932.96,0.18631096]
[1768388805769,0.78602149,933.97,932.96,0.18631096]
[1768388805970,0.78602149,933.96,932.96,0.18631096]
[1768388806171,0.78602149,933.95,932.96,0.18631096]
[1768388806367,1.539,933.98,932.96,0.18631096]
[1768388810274,0.00894825,934.93,932.96,0.18631096]
[1768388810572,0.78500349,934.92,932.96,0.18631096]
[1768388810772,0.78500349,934.91,932.96,0.18631096]
[1768388810970,0.78500349,934.9,932.96,0.18631096]
[1768388811172,0.78500349,934.89,932.96,0.18631096]
[1768388811367,0.78500349,934.88,932.96,0.18631096]
[1768388811569,0.78500349,934.87,932.96,0.18631096]
[1768388811772,0.78500349,934.86,932.96,0.18631096]
[1768388811971,0.78500349,934.85,932.96,0.18631096]
[1768388812173,0.78500349,934.84,932.96,0.18631096]
[1768388812470,0.78500349,934.83,932.96,0.18631096]
[1768388812670,0.78500349,934.82,932.96,0.18631096]
[1768388812869,0.78500349,934.81,932.96,0.18631096]
[1768388813074,0.78500349,934.8,932.96,0.18631096]
[1768388813369,0.78500349,934.79,932.96,0.18631096]
[1768388813571,0.78500349,934.78,932.96,0.18631096]
[1768388813773,0.78500349,934.77,932.96,0.18631096]
[1768388814077,0.78500349,934.76,932.96,0.18631096]
[1768388814374,0.78500349,934.75,932.96,0.18631096]
[1768388814571,0.78500349,934.74,932.96,0.18631096]
[1768388814772,0.78500349,934.73,932.96,0.18631096]
[1768388814972,0.78500349,934.72,932.96,0.18631096]
[1768388815172,0.78500349,934.71,932.96,0.18631096]
[1768388815374,0.78500349,934.7,932.96,0.18631096]
[1768388815576,0.78500349,934.69,932.96,0.18631096]
[1768388815872,0.78500349,934.68,932.96,0.18631096]
[1768388816073,0.78500349,934.67,932.96,0.18631096]
[1768388816270,0.78500349,934.66,932.96,0.18631096]
[1768388816474,0.78500349,934.65,932.96,0.18631096]
[1768388816676,0.78500349,934.64,932.96,0.18631096]
[1768388816879,0.78500349,934.63,932.96,0.18631096]
[1768388817074,0.78500349,934.62,932.96,0.18631096]
[1768388817276,0.78500349,934.61,932.96,0.18631096]
[1768388817572,0.78500349,934.6,932.96,0.18631096]
[1768388817876,0.78500349,934.59,932.96,0.18631096]
[1768388818176,0.78500349,934.58,932.96,0.18631096]
[1768388818376,0.78500349,934.57,932.96,0.18631096]
[1768388818676,0.78500349,934.56,932.96,0.18631096]
[1768388818873,0.78500349,934.55,932.96,0.18631096]
[1768388819075,0.78500349,934.54,932.96,0.18631096]
[1768388819275,0.78500349,934.53,932.96,0.18631096]
[1768388819476,0.78500349,934.52,932.96,0.18631096]
[1768388819674,0.78500349,934.51,932.96,0.18631096]
[1768388819879,0.78500349,934.5,932.96,0.18631096]
[1768388820080,0.78500349,934.49,932.96,0.18631096]
[1768388820276,0.78500349,934.48,932.96,0.18631096]
[1768388820480,0.78500349,934.47,932.96,0.18631096]
[1768388820680,0.78500349,934.46,932.96,0.18631096]
[1768388820883,0.78500349,934.45,932.96,0.18631096]
[1768388821082,0.78500349,934.44,932.96,0.18631096]
[1768388821281,0.78500349,934.43,932.96,0.18631096]
[1768388821582,0.78500349,934.42,932.96,0.18631096]
[1768388821883,0.78500349,934.41,932.96,0.18631096]
[1768388822082,0.78500349,934.4,932.96,0.18631096]
[1768388822284,0.78500349,934.39,932.96,0.18631096]
[1768388822480,0.78500349,934.38,932.96,0.18631096]
[1768388822684,0.78500349,934.37,932.96,0.18631096]
[1768388822882,0.78500349,934.36,932.96,0.18631096]
[1768388823181,0.78500349,934.35,932.96,0.18631096]
[1768388823381,0.78500349,934.34,932.96,0.18631096]
[1768388823584,0.78500349,934.33,932.96,0.18631096]
[1768388823787,1.411,934.84,932.96,0.18631096]
[1768388823986,0.7812284,934.83,932.96,0.18631096]
[1768388824185,0.7812284,934.82,932.96,0.18631096]
[1768388824381,0.7812284,934.81,932.96,0.18631096]
[1768388824685,0.7812284,934.8,932.96,0.18631096]
[1768388824880,0.7812284,934.79,932.96,0.18631096]
[1768388825081,0.7812284,934.78,932.96,0.18631096]
[1768388825385,0.7812284,934.77,932.96,0.18631096]
[1768388825681,0.7812284,934.76,932.96,0.18631096]
[1768388825886,0.7812284,934.75,932.96,0.18631096]
[1768388826083,0.7812284,934.74,932.96,0.18631096]
[1768388826386,0.7812284,934.73,932.96,0.18631096]
[1768388826586,0.7812284,934.72,932.96,0.18631096]
[1768388826780,0.7812284,934.71,932.96,0.18631096]
[1768388827082,0.7812284,934.7,932.96,0.18631096]
[1768388827282,0.7812284,934.69,932.96,0.18631096]
[1768388827484,0.7812284,934.68,932.96,0.18631096]
[1768388827681,0.7812284,934.67,932.96,0.18631096]
[1768388827884,0.7812284,934.66,932.96,0.18631096]
[1768388828086,0.7812284,934.65,932.96,0.18631096]
[1768388828285,0.7812284,934.64,932.96,0.18631096]
[1768388828487,0.7812284,934.63,932.96,0.18631096]
[1768388828687,0.7812284,934.62,932.96,0.18631096]
[1768388828992,0.7812284,934.61,932.96,0.18631096]
[1768388829188,1.411,934.84,932.96,0.18631096]
[1768388829387,0.78125853,934.83,932.96,0.18631096]
[1768388829584,0.78125853,934.82,932.96,0.18631096]
[1768388829785,0.78125853,934.81,932.96,0.18631096]
[1768388830088,0.78125853,934.8,932.96,0.18631096]
[1768388830285,0.78125853,934.79,932.96,0.18631096]
[1768388830489,0.78125853,934.78,932.96,0.18631096]
[1768388830689,0.78125853,934.77,932.96,0.18631096]
[1768388830886,0.78125853,934.76,932.96,0.18631096]
[1768388831086,0.78125853,934.75,932.96,0.18631096]
[1768388831389,0.78125853,934.74,932.96,0.18631096]
[1768388831585,0.78125853,934.73,932.96,0.18631096]
[1768388831886,1.411,934.84,932.96,0.18631096]
[1768388831887,0.78125853,934.72,932.96,0.18631096]
[1768388832189,0.78125853,934.71,932.96,0.18631096]
[1768388832389,0.78125853,934.7,932.96,0.18631096]
[1768388832590,0.78125853,934.69,932.96,0.18631096]
[1768388832788,0.78125853,934.68,932.96,0.18631096]
[1768388833086,0.78125853,934.67,932.96,0.18631096]
[1768388833288,0.78125853,934.66,932.96,0.18631096]
[1768388833486,0.78125853,934.65,932.96,0.18631096]
[1768388833784,0.78125853,934.64,932.96,0.18631096]
[1768388833988,0.78125853,934.63,932.96,0.18631096]
[1768388834188,0.78125853,934.62,932.96,0.18631096]
[1768388834389,0.78125853,934.61,932.96,0.18631096]
[1768388834590,0.78125853,934.6,932.96,0.18631096]
[1768388834793,0.78125853,934.59,932.96,0.18631096]
[1768388834989,0.78125853,934.58,932.96,0.18631096]
[1768388835290,0.78125853,934.57,932.96,0.18631096]
[1768388835489,0.78125853,934.56,932.96,0.18631096]
[1768388835688,0.78125853,934.55,932.96,0.18631096]
[1768388835888,0.78125853,934.54,932.96,0.18631096]
[1768388836086,0.78125853,934.53,932.96,0.18631096]
[1768388836290,0.78125853,934.52,932.96,0.18631096]
[1768388836487,0.78125853,934.51,932.96,0.18631096]
[1768388836691,0.78125853,934.5,932.96,0.18631096]
[1768388836888,0.78125853,934.49,932.96,0.18631096]
[1768388837090,0.78125853,934.48,932.96,0.18631096]
[1768388837293,0.78125853,934.47,932.96,0.18631096]
[1768388837491,0.78125853,934.46,932.96,0.18631096]
[1768388837693,0.78125853,934.45,932.96,0.18631096]
[1768388837989,0.78125853,934.44,932.96,0.18631096]
[1768388838189,0.78125853,934.43,932.96,0.18631096]
[1768388838390,0.78125853,934.42,932.96,0.18631096]
[1768388838591,0.78125853,934.41,932.96,0.18631096]
[1768388838792,0.78125853,934.4,932.96,0.18631096]
[1768388838995,0.78125853,934.39,932.96,0.18631096]
[1768388839190,0.78125853,934.38,932.96,0.18631096]
[1768388839394,0.78125853,934.37,932.96,0.18631096]
[1768388839591,0.78125853,934.36,932.96,0.18631096]
[1768388839895,0.78125853,934.35,932.96,0.18631096]
[1768388840191,0.78125853,934.34,932.96,0.18631096]
[1768388840394,0.78125853,934.33,932.96,0.18631096]
[1768388840590,0.78125853,934.32,932.96,0.18631096]
[1768388840790,0.78125853,934.31,932.96,0.18631096]
[1768388840995,0.78125853,934.3,932.96,0.18631096]
[1768388841291,0.78125853,934.29,932.96,0.18631096]
[1768388841495,0.78125853,934.28,932.96,0.18631096]
[1768388841698,0.78125853,934.27,932.96,0.18631096]
[1768388841896,0.78125853,934.26,932.96,0.18631096]
[1768388842093,0.78125853,934.25,932.96,0.18631096]
[1768388842394,0.78125853,934.24,932.96,0.18631096]
[1768388842597,0.78125853,934.23,932.96,0.18631096]
[1768388842797,0.78125853,934.22,932.96,0.18631096]
[1768388842996,0.78125853,934.21,932.96,0.18631096]
[1768388843199,0.78125853,934.2,932.96,0.18631096]
[1768388843397,0.78125853,934.19,932.96,0.18631096]
[1768388843597,0.78125853,934.18,932.96,0.18631096]
[1768388843799,0.78125853,934.17,932.96,0.18631096]
[1768388844002,0.78125853,934.16,932.96,0.18631096]
[1768388844197,0.78125853,934.15,932.96,0.18631096]
[1768388844397,0.78125853,934.14,932.96,0.18631096]
[1768388844700,0.78125853,934.13,932.96,0.18631096]
[1768388844900,0.78125853,934.12,932.96,0.18631096]
[1768388845100,0.78125853,934.11,932.96,0.18631096]
[1768388845301,0.78125853,934.1,932.96,0.18631096]
[1768388845599,0.78125853,934.09,932.96,0.18631096]
[1768388845901,0.78125853,934.08,932.96,0.18631096]
[1768388846098,0.78125853,934.07,932.96,0.18631096]
[1768388846300,0.78125853,934.06,932.96,0.18631096]
[1768388846595,0.78125853,934.05,932.96,0.18631096]
[1768388846796,0.78125853,934.04,932.96,0.18631096]
[1768388846998,0.78125853,934.03,932.96,0.18631096]
[1768388847201,0.78125853,934.02,932.96,0.18631096]
[1768388847402,0.78125853,934.01,932.96,0.18631096]
[1768388847602,0.78125853,934.0,932.96,0.18631096]
[1768388847901,0.78125853,933.99,932.96,0.18631096]
[1768388848102,1.411,934.84,932.96,0.18631096]
[1768388848301,0.78182753,934.83,932.96,0.18631096]
[1768388848500,0.78180203,934.82,932.96,0.18631096]
[1768388848697,0.78180203,934.81,932.96,0.18631096]
[1768388848897,0.78180203,934.8,932.96,0.18631096]
[1768388849097,0.78180203,934.79,932.96,0.18631096]
[1768388849298,0.78180203,934.78,932.96,0.18631096]
[1768388849497,0.78180203,934.77,932.96,0.18631096]
[1768388849702,0.78180203,934.76,932.96,0.18631096]
[1768388849899,0.78180203,934.75,932.96,0.18631096]
[1768388850097,0.78180203,934.74,932.96,0.18631096]
[1768388850402,0.78180203,934.73,932.96,0.18631096]
[1768388850601,0.78180203,934.72,932.96,0.18631096]
[1768388850902,0.78180203,934.71,932.96,0.18631096]
[1768388851102,0.78180203,934.7,932.96,0.18631096]
[1768388851401,0.78180203,934.69,932.96,0.18631096]
[1768388851602,0.78180203,934.68,932.96,0.18631096]
[1768388851795,0.78180203,934.67,932.96,0.18631096]
[1768388851998,0.78180203,934.66,932.96,0.18631096]
[1768388852198,0.78180203,934.65,932.96,0.18631096]
[1768388852400,0.78180203,934.64,932.96,0.18631096]
[1768388852699,0.78180203,934.63,932.96,0.18631096]
[1768388852904,0.78180203,934.62,932.96,0.18631096]
[1768388853101,0.78180203,934.61,932.96,0.18631096]
[1768388853404,0.78180203,934.6,932.96,0.18631096]
[1768388853604,0.78180203,934.59,932.96,0.18631096]
[1768388853806,0.78019113,934.58,932.96,0.18631096]
[1768388854005,0.78019113,934.57,932.96,0.18631096]
[1768388854209,0.78019113,934.56,932.96,0.18631096]
[1768388854405,0.78019113,934.55,932.96,0.18631096]
[1768388854606,0.78019113,934.54,932.96,0.18631096]
[1768388854904,0.78019113,934.53,932.96,0.18631096]
[1768388855099,1.411,934.84,932.96,0.18631096]
[1768388855100,0.78019113,934.52,932.96,0.18631096]
[1768388855302,0.78019113,934.51,932.96,0.18631096]
[1768388855501,0.78019113,934.5,932.96,0.18631096]
[1768388855807,0.78019113,934.49,932.96,0.18631096]
[1768388856005,0.78019113,934.48,932.96,0.18631096]
[1768388856208,0.78019113,934.47,932.96,0.18631096]
[1768388856408,0.78019113,934.46,932.96,0.18631096]
[1768388856607,0.78019113,934.45,932.96,0.18631096]
[1768388856809,0.78019113,934.44,932.96,0.18631096]
[1768388857105,0.78019113,934.43,932.96,0.18631096]
[1768388857308,1.411,934.84,932.96,0.18631096]
[1768388857309,0.78019113,934.42,932.96,0.18631096]
[1768388857510,0.78019113,934.41,932.96,0.18631096]
[1768388857705,0.78019113,934.4,932.96,0.18631096]
[1768388857905,0.78019113,934.39,932.96,0.18631096]
[1768388858208,0.78019113,934.38,932.96,0.18631096]
[1768388858406,0.78019113,934.37,932.96,0.18631096]
[1768388858606,0.78019113,934.36,932.96,0.18631096]
[1768388858910,0.78019113,934.35,932.96,0.18631096]
[1768388859104,1.411,934.84,932.96,0.18631096]
[1768388859105,0.78019113,934.34,932.96,0.18631096]
[1768388859311,0.78019113,934.33,932.96,0.18631096]
[1768388859606,0.78019113,934.32,932.96,0.18631096]
[1768388859806,0.78019113,934.31,932.96,0.18631096]
[1768388860007,0.78019113,934.3,932.96,0.18631096]
[1768388860207,0.78019113,934.29,932.96,0.18631096]
[1768388860411,0.78019113,934.28,932.96,0.18631096]
[1768388860706,0.78019113,934.27,932.96,0.18631096]
[1768388860911,0.78019113,934.26,932.96,0.18631096]
[1768388861112,0.78019113,934.25,932.96,0.18631096]
[1768388861310,0.78019113,934.24,932.96,0.18631096]
[1768388861513,0.78019113,934.23,932.96,0.18631096]
[1768388861708,0.78019113,934.22,932.96,0.18631096]
[1768388862013,0.78019113,934.21,932.96,0.18631096]
[1768388862213,0.78019113,934.2,932.96,0.18631096]
[1768388862414,0.78019113,934.19,932.96,0.18631096]
[1768388862611,0.78019113,934.18,932.96,0.18631096]
[1768388862810,0.78019113,934.17,932.96,0.18631096]
[1768388863010,0.78019113,934.16,932.96,0.18631096]
[1768388863214,0.78019113,934.15,932.96,0.18631096]
[1768388863512,0.78019113,934.14,932.96,0.18631096]
[1768388863713,0.78019113,934.13,932.96,0.18631096]
[1768388863909,0.78019113,934.12,932.96,0.18631096]
[1768388864113,0.78019113,934.11,932.96,0.18631096]
[1768388864314,0.78019113,934.1,932.96,0.18631096]
[1768388864514,0.78019113,934.09,932.96,0.18631096]
[1768388864711,0.78019113,934.08,932.96,0.18631096]
[1768388865012,0.78019113,934.07,932.96,0.18631096]
[1768388865210,0.78019113,934.06,932.96,0.18631096]
[1768388865414,0.78019113,934.05,932.96,0.18631096]
[1768388865613,0.78019113,934.04,932.96,0.18631096]
[1768388865810,0.78019113,934.03,932.96,0.18631096]
[1768388866015,0.78019113,934.02,932.96,0.18631096]
[1768388866212,0.78019113,934.01,932.96,0.18631096]
[1768388866515,0.78019113,934.0,932.96,0.18631096]
[1768388866715,0.78019113,933.99,932.96,0.18631096]
[1768388866909,0.78019113,933.98,932.96,0.18631096]
[1768388867110,1.411,934.84,932.96,0.18631096]
[1768388867111,0.78019113,933.97,932.96,0.18631096]
[1768388867312,0.78019113,933.96,932.96,0.18631096]
[1768388867614,0.78019113,933.95,932.96,0.18631096]
[1768388867815,1.411,934.84,932.96,0.18631096]
[1768388868012,0.78029903,934.83,932.96,0.18631096]
[1768388868216,0.78029903,934.82,932.96,0.18631096]
[1768388868414,1.411,934.84,932.96,0.18631096]
[1768388868415,0.78029903,934.81,932.96,0.18631096]
[1768388868616,0.78029903,934.8,932.96,0.18631096]
[1768388868812,0.78029903,934.79,932.96,0.18631096]
[1768388869114,0.78029903,934.78,932.96,0.18631096]
[1768388869316,0.78029903,934.77,932.96,0.18631096]
[1768388869617,0.78029903,934.76,932.96,0.18631096]
[1768388869817,0.78029903,934.75,932.96,0.18631096]
[1768388870016,0.78029903,934.74,932.96,0.18631096]
[1768388870214,0.78029903,934.73,932.96,0.18631096]
[1768388870414,0.78029903,934.72,932.96,0.18631096]
[1768388870616,0.78029903,934.71,932.96,0.18631096]
[1768388870817,0.78029903,934.7,932.96,0.18631096]
[1768388871013,0.78029903,934.69,932.96,0.18631096]
[1768388871217,0.78029903,934.68,932.96,0.18631096]
[1768388871413,0.78029903,934.67,932.96,0.18631096]
[1768388871616,0.78029903,934.66,932.96,0.18631096]
[1768388871817,0.78029903,934.65,932.96,0.18631096]
[1768388872116,0.78029903,934.64,932.96,0.18631096]
[1768388872317,0.78029903,934.63,932.96,0.18631096]
[1768388872517,0.78029903,934.62,932.96,0.18631096]
[1768388872813,0.78029903,934.61,932.96,0.18631096]
[1768388873018,0.78029903,934.6,932.96,0.18631096]
[1768388873212,0.78029903,934.59,932.96,0.18631096]
[1768388873420,0.78029903,934.58,932.96,0.18631096]
[1768388873613,0.78029903,934.57,932.96,0.18631096]
[1768388873818,0.78029903,934.56,932.96,0.18631096]
[1768388874018,0.78029903,934.55,932.96,0.18631096]
[1768388874217,0.78029903,934.54,932.96,0.18631096]
[1768388874419,0.78029903,934.53,932.96,0.18631096]
[1768388874617,0.78029903,934.52,932.96,0.18631096]
[1768388874821,0.78029903,934.51,932.96,0.18631096]
[1768388875118,0.78029903,934.5,932.96,0.18631096]
[1768388875319,0.78029903,934.49,932.96,0.18631096]
[1768388875517,0.78029903,934.48,932.96,0.18631096]
[1768388875720,0.78029903,934.47,932.96,0.18631096]
[1768388876019,0.78029903,934.46,932.96,0.18631096]
[1768388876217,0.78029903,934.45,932.96,0.18631096]
[1768388876518,0.78029903,934.44,932.96,0.18631096]
[1768388876718,0.78029903,934.43,932.96,0.18631096]
[1768388876919,0.78029903,934.42,932.96,0.18631096]
[1768388877120,0.78029903,934.41,932.96,0.18631096]
[1768388877321,0.78029903,934.4,932.96,0.18631096]
[1768388877522,0.78029903,934.39,932.96,0.18631096]
[1768388877822,0.78029903,934.38,932.96,0.18631096]
[1768388878022,0.78029903,934.37,932.96,0.18631096]
[1768388878222,0.78029903,934.36,932.96,0.18631096]
[1768388878418,0.78029903,934.35,932.96,0.18631096]
[1768388878619,1.139,934.58,932.96,0.18631096]
[1768388878620,0.78029903,934.34,932.96,0.18631096]
[1768388878917,0.78029903,934.33,932.96,0.18631096]
[1768388879122,0.78029903,934.32,932.96,0.18631096]
[1768388879316,0.78029903,934.31,932.96,0.18631096]
[1768388879518,0.78029903,934.3,932.96,0.18631096]
[1768388879718,0.78029903,934.29,932.96,0.18631096]